Workbook

Sheet 행렬미분_구현
A1: learning rate | B1: 0.01 | D1: 랜덤값 | E1: 0.8326639705 | G1: Y=W1*X1 + W2*X2 + BIAS
A2: w1 | B2: 3 | G2: LOSS=(Y_P - Y_T)^2
A3: w2 | B3: -2
A4: bias | B4: 2
A6: x1 | B6: x2 | C6: Y | D6: Y_pred | E6: Loss
A7: -2.380675933 | B7: 0.2769099823 | C7: =A7*$B$2+B7*$B$3+$B$4+$E$1 -> -4.863183793 | D7: =MMULT(A7:B7,$D$24:$D$25)+$H$24 -> 0.02078330722
A8: 1.576519121 | B8: -0.992772389 | C8: =A8*$B$2+B8*$B$3+$B$4+$E$1 -> 9.54776611 | D8: =MMULT(A8:B8,$D$24:$D$25)+$H$24 -> 0.367833488
A9: -1.642830606 | B9: 2.75478812 | C9: -7.605404087 | D9: 1.035609721
A10: -2.21382747 | B10: 1.378921154 | C10: -6.566660748 | D10: 0.4398569101
A11: 1.664525293 | B11: 1.781943275 | C11: 4.2623533 | D11: 1.356585205
A12: 1.096668957 | B12: 0.9896645602 | C12: 4.143341722 | D12: 0.9657163875
A13: -0.07089102882 | B13: 1.568193225 | C13: -0.5163955653 | D13: 0.9346894229
A14: 0.5009127889 | B14: 0.7296421196 | C14: 2.876118098 | D14: 0.7555572996
A15: 0.6030251273 | B15: 1.619292375 | C15: 1.403154602 | D15: 1.087357357
A16: -2.563525327 | B16: -0.03018208798 | C16: -4.797547835 | D16: -0.1232687962
A23: x1 | C23: 0.2 | D23: W | F23: XW | G23: 0.4 | H23: b | J23: Y_P | K23: x2 | L23: Y_T | N23: loss
A24: -2.380675933 | B24: 0.2769099823 | C24: 0.35 | D24: 0.2 | F24: =MMULT(A24:B24,D24:D25) -> -0.3792166928 | H24: 0.4 | J24: =F24+H24 -> 0.02078330722 | L24: -4.863183793 | N24: =(J24-L24)^2 -> 23.85313464
D25: 0.35
C27: 행렬미분 | D27: dL_dW | H27: dL_dbias
D28: =MMULT(TRANSPOSE(A24:B24),J24-L24) -> -11.62714293 | H28: =J24-L24 -> 4.8839671
D29: 1.352419243
D31: w_new | H31: B_new
D32: =D24-$B$1*D28 -> 0.3162714293 | H32: =H24-$B$1*H28 -> 0.351160329
D33: =D25-$B$1*D29 -> 0.3364758076

Sheet 수식_설명
A2: 수식 설명 | K2: 목적 | U2: 7. Gradient의 정체
C3: 출력 = 입력 × 가중치 → 오차 계산 → 미분 → 가중치 업데이트 | L3: 딥러닝은 입력에 가중치를 곱해 출력을 만들고, 오차를 미분해 가중치를 업데이트하는 과정 | V3: 각 가중치가 손실에 미치는 영향의 방향과 크기
B5: 모델: | K5: 1. 모델 정의 | U5: 8. 경사하강법 (Gradient Descent)
C6: y = w₁·x₁ + w₂·x₂ + b | L6: 신경망은 y = XW + b 형태의 선형모델을 여러 레이어로 쌓은 구조 | V6: Gradient 반대 방향으로 가중치를 조금씩 이동시키는 최적화 알고리즘
C7: 입력 특성 x₁, x₂에 가중치 w₁, w₂를 곱하고 편향 b를 더해 예측값 y를 계산 | V7: W_new = W_old - η × ∂L/∂W
K8: 2. 행렬을 쓰는 이유 | V8: η (학습률): "조금씩"의 크기를 결정하는 hyperparameter
B9: 손실 함수: | L9: 딥러닝은 고차원 데이터를 GPU로 병렬 처리하기 때문에 행렬 연산 필수
C10: L = (y_예측 - y_true)² | U10: 9. 전체 학습 루프
C11: 예측값(y_예측)과 실제값(y_true) 간의 차이를 제곱한 값 (평균제곱오차, MSE) | K11: 3. 순전파 (Forward Pass) | V11: 딥러닝은 예측 → 오차 → 미분 → 업데이트를 반복하는 자동 최적화 시스템
L12: 입력 데이터가 층층이 통과하며 예측값을 만드는 과정 | V12: 반복:
B13: 그래디언트(기울기) 계산: | M13: X → Layer 1 → Layer 2 → ... → 예측값 ŷ | W13: 1. 순전파: 예측값 계산
D14: 각 파라미터에 대한 손실 함수의 편미분을 계산 | W14: 2. 손실 계산: 오차 측정
D15: ∂L/∂w₁ = (y_예측 - y_true) · x₁ | K15: 4. 손실함수 | W15: 3. 역전파: gradient 계산
D16: ∂L/∂w₂ = (y_예측 - y_true) · x₂ | L16: 손실함수는 모델 예측과 실제값 사이의 오차를 수치화한 것 | W16: 4. 가중치 업데이트: W -= η × gradient
D17: ∂L/∂b = (y_예측 - y_true) | M17: 예: MSE, Cross-Entropy | U17: 10. Backprop의 핵심
V18: Backprop = 연쇄법칙(Chain Rule)을 역방향으로 행렬 형태로 구현한 것
B19: 작동 원리 | K19: 5. 학습의 핵심
C20: 1. 그래디언트가 양수면 → 가중치를 감소시켜야 손실이 줄어듬 | L20: 손실을 줄이기 위해 가중치를 어느 방향으로, 얼마나 바꿔야 하는지 | U20: 11. 모든 모델의 공통 구조
C21: 2. 그래디언트가 음수면 → 가중치를 증가시켜야 손실이 줄어듬 | V21: 모든 딥러닝 모델은 내부적으로 행렬곱 + 미분 + 업데이트 구조를 공유
C22: 3. 이 그래디언트에 학습률(learning rate)을 곱해서 파라미터를 조금씩 업데이트 | K22: 6. 역전파 (Backpropagation) | W22: 행렬곱 + 활성화함수 + 미분 + 업데이트 구조를 공유
L23: 연쇄법칙을 역방향으로 적용해 손실을 각 가중치로 미분하여 gradient를 구하는 과정 | W23: 차이는 층의 연결 방식과 연산 종류뿐
M24: 출력층 → 은닉층 → 입력층 방향으로 gradient 전달 | U24: 결론
M25: ∂L/∂W를 계산 (손실이 가중치에 대해 얼마나 민감한가) | V25: 딥러닝: 고차원 공간에서 Loss를 최소화하는 수학적 최적화 문제
V26: AI는 Loss landscape 위에서 W를 조금식 이동시키는(gradient descent로 최적점을 찾는) 알고리즘
B29: 미분 학습 노트
C30: 어디로 얼마나 움직일지 알려주는 방향표
C33: 딥러닝 경사하강법 미분
D34: (WX + b − Y)² 을 왜 미분하는지 | G34: -> 최소로 만들기
D35: 정답과 예측의 차이를 줄이기 위해
E36: 오차=(예측−정답)2 | T36: 정리
U37: 제곱 → 2가 나옴
C38: 1단계 이해. 예측식부터 이해 | L38: 6단계. 치환 | U38: 1단계 미분 → 오차 크기
D39: 예측값=WX+b | L39: (WX+b−Y)2 | M39: -> | N39: z=WX+b−Y | U39: 2 단계 미분
E40: X : 입력 (예: 공부시간) | L40: 단순화 | V40: W → X가 붙음
E41: W : 기울기 (공부시간이 늘면 점수가 얼마나 오르나) | M41: L = z^2 | V41: b → 1만 남음
E42: b : 절편 (아무것도 안 해도 기본 점수) | U42: W는 입력에 영향, b는 전체를 이동
D43: 단순 직선 공식
L44: 7단계. 1단계 미분
M45: dz / dL ​= 2z
C46: 2단계 이해. 손실함수
D47: L=(WX+b−Y)^2 -> 이 값을 최소화하는 게 목표 | M47: 2(WX+b−Y)
D49: 제곱 이유
E50: 음수 제거 | L50: 8단계. 2단계 미분
E51: 차이가 클수록 더 크게 마이너스 보상 | M51: W, b
N52: W를 바꾸면 오차가 얼마나 변하는지
C53: 3단계 이해. 미분 | N53: b를 바꾸면 오차가 얼마나 변하는지
D54: 이 값을 조금 바꾸면, 결과가 얼마나 변하는지 확인
E55: W를 조금 바꾸면 → 오차가 얼마나 변하는지 | L55: 9단계. W에 대해 미분하면 왜 X가 붙는지
E56: b를 조금 바꾸면 → 오차가 얼마나 변하는지 | M56: WX + b − Y 를 W로 미분
D57: 이걸 알아야 다음 단계인 어디로 움직일지 알 수 있음 | N57: WX → X (W가 1 늘면 WX는 X만큼 늘어남)
N58: b → 상수 → 0
C59: 4단계 이해. 미분 기호 d/dz의 의미 | N59: Y → 상수 → 0
D60: (d / zd​) * (z)^2 | M60: d/Wd * ​(WX+b−Y) = X
E61: z가 변할 때, z²는 얼마나 변하는지 | M61: 입력 X가 클수록 가중치 변화도 큼
E62: 변화율을 확인하는 단계 | L62: w 결과값
M63: dL/Dw = 2(WX + b - Y ) *X
C64: 5단계 이해. 왜 z²를 미분하면 2z인지 | M64: 입력 X가 클수록 가중치 변화도 큼
D65: z → z + 조금
D66: z² → 얼마나 커질지 | L66: 10단계. b에 대해 미분하면 왜 X가 없는지
M67: “WX + b − Y 를 b로 미분 결과
C68: d/zd​(z^2)=2z | N68: WX → b랑 무관 → 0
D69: 값이 클수록 → 변화도 더 큼 | N69: b → 1
N70: Y → 상수 → 0
M71: 따라서
N72: d/db * ​(WX+b−Y)=1
L74: b의 결과값
M75: dL/db = 2(WX + b - Y )
M76: b는 전체를 위아래로 이동시키는 역할
L78: 11단계. 경사하강법 업데이트 (실전
M79: W←W−η⋅2(WX+b−Y)X
M80: b←b−η⋅2(WX+b−Y)
L82: η (에타) = 학습률 = 얼마나 한 번에 움직일지
